fUST/lending_fUST_20250702
["ID","MTS","AMOUNT","RATE_DAILY","PERIOD"]
[369087598,1751466639385,-460.0,0.00019178,2]
[369087599,1751466639395,-507.74,0.00019178,2]
[369087600,1751466639404,-460.0,0.00019178,2]
[369087601,1751466639413,-460.0,0.00019178,2]
[369087602,1751466639423,-151.0,0.00019178,2]
[369087603,1751466639432,-1038.44,0.00019178,2]
[369087604,1751466639442,-460.0,0.00019178,2]
[369087605,1751466639451,-460.0,0.00019178,2]
[369087606,1751466639461,-461.20224027,0.00019178,2]
[369087607,1751466639472,-151.0,0.00019178,2]
[369087608,1751466639487,-460.0,0.00019178,2]
[369087609,1751466639497,-602.93456521,0.00019178,2]
[369087610,1751466639506,-460.0,0.00019178,2]
[369087611,1751466639518,-460.0,0.00019178,2]
[369087612,1751466639527,-460.0,0.00019178,2]
[369087613,1751466639536,-151.0,0.00019178,2]
[369087614,1751466639547,-1714.6,0.00019178,2]
[369087615,1751466639558,-460.0,0.00019178,2]
[369087616,1751466639568,-938.5,0.00019178,2]
[369087617,1751466639577,-460.0,0.00019178,2]
[369087618,1751466639587,-460.0,0.00019178,2]
[369087619,1751466639596,-151.0,0.00019178,2]
[369087620,1751466639605,-460.0,0.00019178,2]
[369087621,1751466639616,-460.0,0.00019178,2]
[369087622,1751466639626,-451.635067,0.00019178,2]
[369087623,1751466639636,-451.635067,0.00019178,2]
[369087624,1751466639645,-460.0,0.00019178,2]
[369087625,1751466639655,-460.0,0.00019178,2]
[369087626,1751466639664,-460.0,0.00019178,2]
[369087627,1751466639674,-4082.07,0.00019178,2]
[369087628,1751466639684,-460.0,0.00019178,2]
[369087629,1751466639693,-267.9336596,0.00019178,2]
[369087630,1751466639703,-532.57,0.00019178,2]
[369087631,1751466639713,-460.0,0.00019178,2]
[369087632,1751466639722,-460.0,0.00019178,2]
[369087633,1751466639731,-460.0,0.00019178,2]
[369087634,1751466639741,-460.0,0.00019178,2]
[369087635,1751466639750,-151.0,0.00019178,2]
[369087636,1751466639759,-1629.44,0.00019178,2]
[369087637,1751466639769,-548.32,0.00019178,2]
[369087638,1751466639779,-151.0,0.00019178,2]
[369087640,1751466639788,-474.90166585,0.00019178,2]
[369087641,1751466639797,-460.0,0.00019178,2]
[369087642,1751466639806,-460.0,0.00019178,2]
[369087643,1751466639816,-460.0,0.00019178,2]
[369087644,1751466639827,-973.5,0.00019178,2]
[369087645,1751466639837,-460.0,0.00019178,2]
[369087647,1751466639846,-151.0,0.00019178,2]
[369087648,1751466639857,-460.0,0.00019178,2]
[369087649,1751466639866,-460.0,0.00019178,2]
[369087650,1751466639876,-460.0,0.00019178,2]
[369087651,1751466639886,-1421.39,0.00019178,2]
[369087652,1751466639895,-460.0,0.00019178,2]
[369087653,1751466639905,-460.0,0.00019178,2]
[369087654,1751466639915,-460.0,0.00019178,2]
[369087655,1751466639925,-460.0,0.00019178,2]
[369087656,1751466639934,-2500.66,0.00019178,2]
[369087657,1751466639944,-2690.46,0.00019178,2]
[369087658,1751466639953,-151.0,0.00019178,2]
[369087659,1751466639963,-4321.4,0.00019178,2]
[369087660,1751466639973,-460.0,0.00019178,2]
[369087661,1751466639983,-151.0,0.00019178,2]
[369087662,1751466639993,-460.0,0.00019178,2]
[369087663,1751466640003,-278.778831,0.00019178,2]
[369087664,1751466640012,-460.0,0.00019178,2]
[369087665,1751466640021,-460.0,0.00019178,2]
[369087666,1751466640030,-460.0,0.00019178,2]
[369087667,1751466640040,-460.0,0.00019178,2]
[369087668,1751466640049,-614.07,0.00019178,2]
[369087669,1751466640059,-460.0,0.00019178,2]
[369087670,1751466640068,-460.0,0.00019178,2]
[369087671,1751466640077,-460.0,0.00019178,2]
[369087672,1751466640087,-460.0,0.00019178,2]
[369087673,1751466640097,-709.4,0.00019178,2]
[369087674,1751466640106,-1673.25,0.00019178,2]
[369087675,1751466640116,-460.0,0.00019178,2]
[369087676,1751466640126,-460.0,0.00019178,2]
[369087677,1751466640136,-151.0,0.00019178,2]
[369087678,1751466640145,-460.0,0.00019178,2]
[369087679,1751466640154,-460.0,0.00019178,2]
[369087680,1751466640164,-472.61,0.00019178,2]
[369087681,1751466640173,-460.0,0.00019178,2]
[369087682,1751466640183,-245.851277,0.00019178,2]
[369087683,1751466640192,-460.0,0.00019178,2]
[369087684,1751466640202,-460.0,0.00019178,2]
[369087685,1751466640212,-460.0,0.00019178,2]
[369087686,1751466640221,-245.851277,0.00019178,2]
[369087687,1751466640231,-600.92,0.00019178,2]
[369087688,1751466640240,-460.0,0.00019178,2]
[369087689,1751466640250,-151.0,0.00019178,2]
[369087690,1751466640260,-460.0,0.00019178,2]
[369087691,1751466640269,-460.0,0.00019178,2]
[369087692,1751466640278,-460.0,0.00019178,2]
[369087693,1751466640288,-460.0,0.00019178,2]
[369087695,1751466640298,-460.0,0.00019178,2]
[369087697,1751466640309,-460.0,0.00019178,2]
[369087698,1751466640318,-460.0,0.00019178,2]
[369087699,1751466640328,-1068.4,0.00019178,2]
[369087700,1751466640338,-576.49,0.00019178,2]
[369087702,1751466640347,-460.0,0.00019178,2]
[369087704,1751466640357,-460.0,0.00019178,2]
[369087706,1751466640368,-460.0,0.00019178,2]
[369087708,1751466640377,-460.0,0.00019178,2]
[369087710,1751466640386,-477.75,0.00019178,2]
[369087712,1751466640395,-936.1,0.00019178,2]
[369087713,1751466640405,-460.0,0.00019178,2]
[369087715,1751466640414,-2073.05,0.00019178,2]
[369087717,1751466640425,-460.0,0.00019178,2]
[369087719,1751466640434,-460.0,0.00019178,2]
[369087720,1751466640444,-2623.17,0.00019178,2]
[369087721,1751466640453,-460.0,0.00019178,2]
[369087722,1751466640462,-938.4,0.00019178,2]
[369087723,1751466640472,-1217.87,0.00019178,2]
[369087724,1751466640484,-1217.87,0.00019178,2]
[369087725,1751466640494,-1217.87,0.00019178,2]
[369087726,1751466640503,-460.0,0.00019178,2]
[369087727,1751466640514,-1217.87,0.00019178,2]
[369087728,1751466640523,-600.34,0.00019178,2]
[369087729,1751466640533,-1217.87,0.00019178,2]
[369087730,1751466640542,-1217.87,0.00019178,2]
[369087731,1751466640553,-460.0,0.00019178,2]
[369087733,1751466640563,-460.0,0.00019178,2]
[369087735,1751466640572,-1217.87,0.00019178,2]
[369087737,1751466640581,-1217.87,0.00019178,2]
[369087738,1751466640591,-566.41,0.00019178,2]
[369087739,1751466640600,-460.0,0.00019178,2]
[369087741,1751466640609,-460.0,0.00019178,2]
[369087743,1751466640619,-3089.83,0.00019178,2]
[369087744,1751466640628,-460.0,0.00019178,2]
[369087745,1751466640638,-460.0,0.00019178,2]
[369087746,1751466640648,-537.5,0.00019178,2]
[369087748,1751466640658,-460.0,0.00019178,2]
[369087749,1751466640667,-460.0,0.00019178,2]
[369087750,1751466640677,-460.0,0.00019178,2]
[369087751,1751466640687,-460.0,0.00019178,2]
[369087752,1751466640696,-460.0,0.00019178,2]
[369087753,1751466640705,-460.0,0.00019178,2]
[369087754,1751466640715,-1580.4,0.00019178,2]
[369087755,1751466640725,-3964.93,0.00019178,2]
[369087756,1751466640735,-460.0,0.00019178,2]
[369087757,1751466640744,-504.75,0.00019178,2]
[369087758,1751466640754,-460.0,0.00019178,2]
[369087759,1751466640763,-460.0,0.00019178,2]
[369087760,1751466640773,-460.0,0.00019178,2]
[369087761,1751466640782,-460.0,0.00019178,2]
[369087762,1751466640921,-460.0,0.00019178,2]
[369087763,1751466640931,-1972.09,0.00019178,2]
[369087764,1751466640940,-460.0,0.00019178,2]
[369087765,1751466640950,-151.0,0.00019178,2]
[369087766,1751466640960,-511.05,0.00019178,2]
[369087767,1751466640970,-4287.54,0.00019178,2]
[369087768,1751466640979,-460.0,0.00019178,2]
[369087769,1751466640989,-1703.05,0.00019178,2]
[369087770,1751466640999,-460.0,0.00019178,2]
[369087771,1751466641008,-460.0,0.00019178,2]
[369087772,1751466641017,-460.0,0.00019178,2]
[369087773,1751466641027,-460.0,0.00019178,2]
[369087774,1751466641036,-460.0,0.00019178,2]
[369087775,1751466641046,-460.0,0.00019178,2]
[369087776,1751466641055,-460.0,0.00019178,2]
[369087777,1751466641065,-460.0,0.00019178,2]
[369087778,1751466641074,-460.0,0.00019178,2]
[369087779,1751466641084,-1074.93,0.00019178,2]
[369087780,1751466641093,-173.076601,0.00019178,2]
[369087781,1751466641103,-370.20224997,0.00019223,2]
[369087782,1751466641113,-5709.94641149,0.00019279,2]
[369087783,1751466641123,-151.0,0.00019352,2]
[369087784,1751466641133,-151.0,0.00019352,2]
[369087785,1751466641143,-151.0,0.00019352,2]
[369087786,1751466641152,-155.950626,0.00019352,2]
[369087787,1751466641161,-151.0,0.00019352,2]
[369087788,1751466641171,-481.985425,0.00019352,2]
[369087789,1751466641180,-481.985425,0.00019352,2]
[369087790,1751466641190,-151.0,0.00019352,2]
[369087791,1751466641200,-151.0,0.00019352,2]
[369087792,1751466641209,-151.0,0.00019352,2]
[369087793,1751466641219,-11474.54948226,0.00019352,2]
[369087794,1751466641228,-151.0,0.00019352,2]
[369087795,1751466641238,-7225.12927896,0.00019352,2]
[369087796,1751466641248,-1217.87,0.00019362,2]
[369087797,1751466641258,-168.0,0.00019363,2]
[369087798,1751466641268,-151.0,0.00019383,2]
[369087799,1751466641277,-151.0,0.00019383,2]
[369087800,1751466641287,-306.0,0.00019408,2]
[369087801,1751466641297,-159.3697675,0.00019408,2]
[369087802,1751466641307,-159.3697675,0.00019408,2]
[369087803,1751466641317,-177.6255604,0.00019408,2]
[369087804,1751466641326,-177.6255604,0.00019408,2]
[369087805,1751466641336,-159.3697675,0.00019408,2]
[369087806,1751466641346,-159.3697675,0.00019408,2]
[369087807,1751466641356,-177.6255604,0.00019408,2]
[369087808,1751466641365,-177.6255604,0.00019408,2]
[369087809,1751466641375,-575.597667,0.00019408,2]
[369087810,1751466641385,-575.597667,0.00019408,2]
[369087811,1751466641394,-575.597667,0.00019408,2]
[369087812,1751466641404,-575.597667,0.00019408,2]
[369087813,1751466641413,-1217.87,0.00019451,2]
[369087814,1751466641423,-1217.87,0.00019451,2]
[369087815,1751466641432,-1217.87,0.00019451,2]
[369087816,1751466641441,-1217.87,0.00019451,2]
[369087817,1751466641451,-151.0,0.00019452,2]
[369087818,1751466641461,-460.0,0.00019452,2]
[369087819,1751466641471,-460.0,0.00019452,2]
[369087820,1751466641483,-151.0,0.00019452,2]
[369087821,1751466641492,-460.0,0.00019452,2]
[369087822,1751466641502,-460.0,0.00019452,2]
[369087823,1751466641511,-151.0,0.00019452,2]
[369087824,1751466641521,-460.0,0.00019452,2]
[369087825,1751466641531,-154.981097,0.00019452,2]
[369087826,1751466641540,-460.0,0.00019452,2]
[369087827,1751466641550,-151.0,0.00019452,2]
[369087828,1751466641560,-151.0,0.00019452,2]
[369087829,1751466641571,-592.94,0.00019452,2]
[369087830,1751466641580,-460.0,0.00019452,2]
[369087831,1751466641590,-460.0,0.00019452,2]
[369087832,1751466641600,-460.0,0.00019452,2]
[369087833,1751466641610,-241.411503,0.00019452,2]
[369087834,1751466641620,-241.411503,0.00019452,2]
[369087835,1751466641629,-460.0,0.00019452,2]
[369087836,1751466641639,-151.0,0.00019452,2]
[369087837,1751466641648,-151.0,0.00019452,2]
[369087838,1751466641658,-561.97,0.00019452,2]
[369087839,1751466641668,-151.0,0.00019452,2]
[369087840,1751466641678,-151.0,0.00019452,2]
[369087841,1751466641687,-500.0,0.00019452,2]
[369087842,1751466641698,-460.0,0.00019452,2]
[369087843,1751466641708,-460.0,0.00019452,2]
[369087844,1751466641718,-151.0,0.00019452,2]
[369087845,1751466641728,-151.0,0.00019452,2]
[369087846,1751466641738,-430.359968,0.00019452,2]
[369087847,1751466641748,-430.359968,0.00019452,2]
[369087848,1751466641758,-151.0,0.00019452,2]
[369087849,1751466641768,-613.15,0.00019452,2]
[369087850,1751466641777,-151.0,0.00019452,2]
[369087851,1751466641787,-151.0,0.00019452,2]
[369087852,1751466641796,-172.454642,0.00019452,2]
[369087853,1751466641805,-172.454642,0.00019452,2]
[369087854,1751466641817,-172.454642,0.00019452,2]
[369087855,1751466641826,-172.454642,0.00019452,2]
[369087856,1751466641836,-151.0,0.00019452,2]
[369087857,1751466641845,-460.0,0.00019452,2]
[369087858,1751466641856,-460.0,0.00019452,2]
[369087859,1751466641867,-155.278732,0.00019452,2]
[369087860,1751466641876,-1206.3,0.00019452,2]
[369087861,1751466641886,-253.457221,0.00019452,2]
[369087862,1751466641896,-253.457221,0.00019452,2]
[369087863,1751466641907,-460.0,0.00019452,2]
[369087864,1751466641916,-460.0,0.00019452,2]
[369087865,1751466641926,-151.0,0.00019452,2]
[369087866,1751466641935,-267.144722,0.00019452,2]
[369087867,1751466641946,-151.0,0.00019452,2]
[369087868,1751466641955,-407.76415195,0.00019452,2]
[369087869,1751466641965,-608.16,0.00019452,2]
[369087870,1751466641975,-151.0,0.00019452,2]
[369087871,1751466641985,-151.0,0.00019452,2]
[369087872,1751466641995,-460.0,0.00019452,2]
[369087873,1751466642005,-507.74,0.00019452,2]
[369087874,1751466642015,-460.0,0.00019452,2]
[369087875,1751466642026,-151.0,0.00019452,2]
[369087876,1751466642035,-151.0,0.00019452,2]
[369087877,1751466642045,-1038.44,0.00019452,2]
[369087878,1751466642055,-151.0,0.00019452,2]
[369087879,1751466642065,-151.0,0.00019452,2]
[369087880,1751466642075,-460.0,0.00019452,2]
[369087881,1751466642085,-151.0,0.00019452,2]
[369087882,1751466642094,-151.0,0.00019452,2]
[369087883,1751466642104,-1714.6,0.00019452,2]
[369087884,1751466642115,-938.5,0.00019452,2]
[369087885,1751466642124,-460.0,0.00019452,2]
[369087886,1751466642134,-151.0,0.00019452,2]
[369087887,1751466642143,-451.635067,0.00019452,2]
[369087888,1751466642153,-451.635067,0.00019452,2]
[369087889,1751466642163,-451.635067,0.00019452,2]
[369087890,1751466642172,-451.635067,0.00019452,2]
[369087891,1751466642182,-481.985425,0.00019452,2]
[369087892,1751466642192,-481.985425,0.00019452,2]
[369087893,1751466642201,-460.0,0.00019452,2]
[369087894,1751466642211,-481.985425,0.00019452,2]
[369087895,1751466642221,-481.985425,0.00019452,2]
[369087896,1751466642231,-460.0,0.00019452,2]
[369087897,1751466642240,-460.0,0.00019452,2]
[369087898,1751466642250,-4082.07,0.00019452,2]
[369087899,1751466642260,-151.0,0.00019452,2]
[369087900,1751466642269,-151.0,0.00019452,2]
[369087901,1751466642279,-460.0,0.00019452,2]
[369087902,1751466642289,-532.57,0.00019452,2]
[369087903,1751466642298,-151.0,0.00019452,2]
[369087904,1751466642308,-151.0,0.00019452,2]
[369087905,1751466642317,-151.0,0.00019452,2]
[369087906,1751466642327,-151.0,0.00019452,2]
[369087907,1751466642336,-1629.44,0.00019452,2]
[369087908,1751466642346,-548.32,0.00019452,2]
[369087909,1751466642355,-171.46396,0.00019452,2]
[369087910,1751466642365,-460.0,0.00019452,2]
[369087911,1751466642375,-973.5,0.00019452,2]
[369087912,1751466642384,-151.0,0.00019452,2]
[369087913,1751466642394,-460.0,0.00019452,2]
[369087914,1751466642403,-151.0,0.00019452,2]
[369087915,1751466642412,-167.8195284,0.00019452,2]
[369087916,1751466642422,-1421.39,0.00019452,2]
[369087917,1751466642433,-460.0,0.00019452,2]
[369087918,1751466642442,-460.0,0.00019452,2]
[369087920,1751466642452,-2500.66,0.00019452,2]
[369087921,1751466642462,-2690.46,0.00019452,2]
[369087922,1751466642471,-151.0,0.00019452,2]
[369087923,1751466642485,-151.0,0.00019452,2]
[369087924,1751466642494,-4321.4,0.00019452,2]
[369087925,1751466642504,-460.0,0.00019452,2]
[369087926,1751466642513,-151.0,0.00019452,2]
[369087927,1751466642524,-151.0,0.00019452,2]
[369087928,1751466642533,-460.0,0.00019452,2]
[369087929,1751466642542,-460.0,0.00019452,2]
[369087930,1751466642554,-614.07,0.00019452,2]
[369087931,1751466642563,-460.0,0.00019452,2]
[369087932,1751466642573,-1673.25,0.00019452,2]
[369087933,1751466642583,-709.4,0.00019452,2]
[369087935,1751466642592,-460.0,0.00019452,2]
[369087936,1751466642602,-151.0,0.00019452,2]
[369087937,1751466642612,-151.0,0.00019452,2]
[369087938,1751466642622,-460.0,0.00019452,2]
[369087939,1751466642632,-460.0,0.00019452,2]
[369087940,1751466642641,-245.851277,0.00019452,2]
[369087941,1751466642650,-460.0,0.00019452,2]
[369087942,1751466642660,-245.851277,0.00019452,2]
[369087943,1751466642670,-460.0,0.00019452,2]
[369087944,1751466642679,-245.851277,0.00019452,2]
[369087945,1751466642688,-245.851277,0.00019452,2]
[369087946,1751466642698,-600.92,0.00019452,2]
[369087947,1751466642707,-151.0,0.00019452,2]
[369087948,1751466642717,-151.0,0.00019452,2]
[369087949,1751466642726,-460.0,0.00019452,2]
[369087950,1751466642736,-460.0,0.00019452,2]
[369087951,1751466642745,-1068.4,0.00019452,2]
[369087952,1751466642755,-576.49,0.00019452,2]
[369087953,1751466642764,-267.94857808,0.00019452,2]
[369087954,1751466642773,-477.75,0.00019452,2]
[369087955,1751466642783,-936.1,0.00019452,2]
[369087956,1751466642792,-2073.05,0.00019452,2]
[369087958,1751466642801,-460.0,0.00019452,2]
[369087959,1751466642810,-460.0,0.00019452,2]
[369087960,1751466642820,-2623.17,0.00019452,2]
[369087961,1751466642829,-938.4,0.00019452,2]
[369087962,1751466642839,-600.34,0.00019452,2]
[369087963,1751466642849,-460.0,0.00019452,2]
[369087965,1751466642859,-460.0,0.00019452,2]
[369087966,1751466642870,-566.41,0.00019452,2]
[369087967,1751466642880,-460.0,0.00019452,2]
[369087969,1751466642889,-3089.83,0.00019452,2]
[369087970,1751466642899,-460.0,0.00019452,2]
[369087971,1751466642909,-537.5,0.00019452,2]
[369087972,1751466642918,-460.0,0.00019452,2]
[369087973,1751466642927,-460.0,0.00019452,2]
[369087974,1751466642938,-460.0,0.00019452,2]
[369087975,1751466642948,-1580.4,0.00019452,2]
[369087976,1751466642957,-3964.93,0.00019452,2]
[369087977,1751466642967,-504.75,0.00019452,2]
[369087979,1751466642976,-460.0,0.00019452,2]
[369087980,1751466642986,-460.0,0.00019452,2]
[369087981,1751466642996,-460.0,0.00019452,2]
[369087982,1751466643005,-460.0,0.00019452,2]
[369087983,1751466643015,-1972.09,0.00019452,2]
[369087984,1751466643025,-151.0,0.00019452,2]
[369087985,1751466643034,-151.0,0.00019452,2]
[369087986,1751466643044,-511.05,0.00019452,2]
[369087987,1751466643054,-4287.54,0.00019452,2]
[369087988,1751466643064,-1703.05,0.00019452,2]
[369087989,1751466643073,-460.0,0.00019452,2]
[369087990,1751466643083,-257.61468776,0.00019452,2]
[369087991,1751466643093,-460.0,0.00019452,2]
[369087992,1751466643102,-460.0,0.00019452,2]
[369087993,1751466643114,-460.0,0.00019452,2]
[369087994,1751466643126,-460.0,0.00019452,2]
[369087995,1751466643137,-1074.93,0.00019452,2]
[369087996,1751466643148,-307.3890461,0.00019459,2]
[369087997,1751466643160,-1217.87,0.00019525,2]
[369087998,1751466643172,-253.457221,0.00019526,2]
[369087999,1751466643183,-253.457221,0.00019526,2]
[369088000,1751466643193,-151.0,0.00019526,2]
[369088001,1751466643203,-245.851277,0.00019526,2]
[369088002,1751466643214,-245.851277,0.00019526,2]
[369088003,1751466643224,-169.4,0.00019542,3]
[369088004,1751466643234,-5709.94641149,0.00019555,2]
[369088005,1751466643244,-500.0,0.00019562,2]
[369088007,1751466643254,-5000.0,0.0001957,2]
[369088008,1751466643264,-151.0,0.00019586,2]
[369088010,1751466643274,-500.0,0.00019589,2]
[369088011,1751466643283,-344.394512,0.00019599,2]
[369088012,1751466643294,-819.811,0.00019612,2]
[369088013,1751466643303,-500.0,0.00019617,2]
[369088014,1751466643313,-1217.87,0.00019625,2]
[369088016,1751466643323,-926.0608359,0.00019626,2]
[369088017,1751466643364,-151.0,0.00019626,2]
[369088018,1751466643374,-151.0,0.00019626,2]
[369088019,1751466643383,-151.0,0.00019626,2]
[369088021,1751466643393,-172.454642,0.00019626,2]
[369088023,1751466643403,-172.454642,0.00019626,2]
[369088025,1751466643412,-499.96,0.00019644,2]
[369088027,1751466643422,-151.0,0.000197,2]
[369088028,1751466643431,-151.0,0.00019715,2]
[369088029,1751466643440,-183.242509,0.00019715,2]
[369088030,1751466643450,-451.635067,0.00019715,2]
[369088031,1751466643459,-451.635067,0.00019715,2]
[369088032,1751466643469,-151.0,0.00019715,2]
[369088033,1751466643481,-151.0,0.00019715,2]
[369088034,1751466643492,-151.0,0.00019725,2]
[369088035,1751466643501,-1217.87,0.00019725,2]
[369088036,1751466643511,-1217.87,0.00019725,2]
[369088037,1751466643522,-1217.87,0.00019725,2]
[369088038,1751466643532,-1217.87,0.00019725,2]
[369088039,1751466643542,-151.0,0.00019726,2]
[369088040,1751466643554,-215.34069953,0.00019726,2]
[369088041,1751466643565,-151.0,0.00019726,2]
[369088042,1751466643575,-151.0,0.00019726,2]
[369088043,1751466643585,-460.0,0.00019726,2]
[369088044,1751466643595,-151.0,0.00019726,2]
[369088045,1751466643605,-460.0,0.00019726,2]
[369088046,1751466643616,-151.0,0.00019726,2]
[369088047,1751466643625,-460.0,0.00019726,2]
[369088048,1751466643634,-504.88004211,0.00019726,2]
[369088049,1751466643643,-151.0,0.00019726,2]
[369088050,1751466643653,-151.0,0.00019726,2]
[369088051,1751466643663,-151.0,0.00019726,2]
[369088052,1751466643672,-151.0,0.00019726,2]
[369088053,1751466643682,-592.94,0.00019726,2]
[369088054,1751466643691,-460.0,0.00019726,2]
[369088055,1751466643700,-460.0,0.00019726,2]
[369088056,1751466643709,-241.411503,0.00019726,2]
[369088057,1751466643719,-241.411503,0.00019726,2]
[369088058,1751466643728,-460.0,0.00019726,2]
[369088059,1751466643737,-151.0,0.00019726,2]
[369088060,1751466643747,-561.97,0.00019726,2]
[369088061,1751466643756,-151.0,0.00019726,2]
[369088062,1751466643766,-460.0,0.00019726,2]
[369088063,1751466643776,-151.0,0.00019726,2]
[369088064,1751466643785,-430.359968,0.00019726,2]
[369088065,1751466643795,-430.359968,0.00019726,2]
[369088066,1751466643804,-613.15,0.00019726,2]
[369088067,1751466643814,-151.0,0.00019726,2]
[369088068,1751466643823,-172.454642,0.00019726,2]
[369088069,1751466643833,-172.454642,0.00019726,2]
[369088070,1751466643842,-151.0,0.00019726,2]
[369088071,1751466643852,-460.0,0.00019726,2]
[369088072,1751466643863,-460.0,0.00019726,2]
[369088073,1751466643872,-1206.3,0.00019726,2]
[369088074,1751466643882,-253.457221,0.00019726,2]
[369088075,1751466643891,-253.457221,0.00019726,2]
[369088076,1751466643901,-253.457221,0.00019726,2]
[369088077,1751466643911,-253.457221,0.00019726,2]
[369088078,1751466643920,-460.0,0.00019726,2]
[369088079,1751466643930,-460.0,0.00019726,2]
[369088080,1751466643939,-151.0,0.00019726,2]
[369088081,1751466643949,-151.0,0.00019726,2]
[369088082,1751466643959,-608.16,0.00019726,2]
[369088083,1751466643969,-151.0,0.00019726,2]
[369088084,1751466643978,-151.0,0.00019726,2]
[369088085,1751466643988,-460.0,0.00019726,2]
[369088086,1751466643998,-507.74,0.00019726,2]
[369088087,1751466644008,-460.0,0.00019726,2]
[369088088,1751466644017,-151.0,0.00019726,2]
[369088089,1751466644027,-1038.44,0.00019726,2]
[369088090,1751466644037,-460.0,0.00019726,2]
[369088091,1751466644046,-1714.6,0.00019726,2]
[369088092,1751466644056,-938.5,0.00019726,2]
[369088093,1751466644067,-460.0,0.00019726,2]
[369088094,1751466644076,-451.635067,0.00019726,2]
[369088095,1751466644086,-451.635067,0.00019726,2]
[369088096,1751466644096,-481.985425,0.00019726,2]
[369088097,1751466644106,-460.0,0.00019726,2]
[369088098,1751466644117,-481.985425,0.00019726,2]
[369088099,1751466644127,-481.985425,0.00019726,2]
[369088100,1751466644137,-481.985425,0.00019726,2]
[369088101,1751466644147,-460.0,0.00019726,2]
[369088102,1751466644156,-460.0,0.00019726,2]
[369088103,1751466644165,-4082.07,0.00019726,2]
[369088104,1751466644175,-151.0,0.00019726,2]
[369088105,1751466644185,-151.0,0.00019726,2]
[369088106,1751466644195,-564.87,0.00019726,2]
[369088107,1751466644204,-532.57,0.00019726,2]
[369088108,1751466644214,-217.320005,0.00019726,2]
[369088109,1751466644224,-548.32,0.00019726,2]
[369088110,1751466644233,-151.0,0.00019726,2]
[369088111,1751466644243,-1629.44,0.00019726,2]
[369088112,1751466644252,-151.0,0.00019726,2]
[369088113,1751466644262,-460.0,0.00019726,2]
[369088114,1751466644271,-973.5,0.00019726,2]
[369088115,1751466644281,-460.0,0.00019726,2]
[369088116,1751466644290,-151.0,0.00019726,2]
[369088118,1751466644299,-151.0,0.00019726,2]
[369088120,1751466644309,-1421.39,0.00019726,2]
[369088121,1751466644319,-460.0,0.00019726,2]
[369088122,1751466644328,-460.0,0.00019726,2]
[369088123,1751466644337,-2500.66,0.00019726,2]
[369088124,1751466644347,-2690.46,0.00019726,2]
[369088125,1751466644356,-151.0,0.00019726,2]
[369088126,1751466644366,-4321.4,0.00019726,2]
[369088128,1751466644376,-460.0,0.00019726,2]
[369088129,1751466644385,-151.0,0.00019726,2]
[369088130,1751466644395,-460.0,0.00019726,2]
[369088131,1751466644404,-614.07,0.00019726,2]
[369088132,1751466644413,-460.0,0.00019726,2]